Cogmind - Beta 14 @@@ ROGUE MODE // 2024.09.03 @ 19:26:17 Player: STOMPAWARDAKKA Result: Destroyed by S-10 Pest with Light Assault Rifle Performance ------------- Evolutions (0) 0 Regions Visited (2) 400 Robots Destroyed (20) 100 Value Destroyed (370) 370 Prototype IDs (0) 0 Alien Tech Used (0) 0 Bonus (0) 0 TOTAL SCORE: 870 Bonus ------- None Cogmind --------- Core Integrity 0/250 Matter 284/300 Energy 99/100 System Corruption 0% Temperature Cool (0) Movement Core (100) Ox1 Location -10/Mines Parts ------- > --- POWER (1) -------- (None) > --- PROPULSION (2) --- (None) > --- UTILITY (2) ------ Small Storage Unit > --- WEAPON (2) ------- Light Assault Rifle > --- INVENTORY (8) ---- Light Treads Light Treads Aluminum Leg Aluminum Leg Aluminum Leg Rocket Launcher Peak State ------------ > --- POWER ------------ Light Ion Engine > --- PROPULSION ------- Aluminum Leg Aluminum Leg > --- UTILITY ---------- Small Storage Unit > --- WEAPON ----------- Medium Laser Assault Rifle > --- INVENTORY -------- Light Treads Light Treads Medium Laser [Rating: 6] Favorites ----------- Power Light Ion Engine Engine Light Ion Engine Propulsion Aluminum Leg Leg Aluminum Leg Utility Small Storage Unit Storage Small Storage Unit Weapon Medium Laser Energy Gun Medium Laser Ballistic Gun Light Assault Rifle Build | -11 -10 -10 ------- Run | Yrd Mat Min Slots Evolved . | . . . Power . | . . . Propulsion . | . . . Utility . | . . . Weapon . | . . . Parts Attached 15 | 6 5 4 Power 1 | 1 . . Engine 1 | 1 . . Core . | . . . Reactor . | . . . Propulsion 4 | 2 . 2 Treads . | . . . Leg 4 | 2 . 2 Wheel . | . . . Hover . | . . . Flight . | . . . Utility 1 | 1 . . Device . | . . . Storage 1 | 1 . . Processor . | . . . Hackware . | . . . Protection . | . . . Artifact . | . . . Weapon 9 | 2 5 2 Energy Gun 4 | 1 3 . Energy Cannon . | . . . Ballistic Gun 5 | 1 2 2 Ballistic Cannon . | . . . Launcher . | . . . Special Weapon . | . . . Impact Weapon . | . . . Slashing Weapon . | . . . Piercing Weapon . | . . . Special Melee Weapon . | . . . Unidentified Prototypes . | . . . Parts Lost 8 | . 2 6 Power 1 | . 1 . Propulsion 3 | . . 3 Utility . | . . . Weapon 4 | . 1 3 Highest Loss Streak 3 | . 2 3 To Critical Strikes . | . . . Average Slot Usage (%) 70 | . 74 65 Engine 3 | . 6 . Leg 25 | . 28 24 Storage 14 | . 14 14 Energy Gun 12 | . 16 8 Ballistic Gun 14 | . 8 19 Peak Build Rating 6 | 6 6 5 Average Rating 4 | 4 5 4 On Entrance 3 | . 6 5 Naked Turns . | . . . Heaviest Build 12 | 12 12 9 Greatest Support 20 | 20 20 20 Greatest Overweight (x) 2 | . . 2 Average Overweight (x) . | . . . Largest Inventory Capacity 8 | 8 8 8 Average Capacity 7 | 6 8 8 Most Carried 6 | 5 5 6 Average Carried 4 | 2 3 5 Final Capacity 8 | 8 8 8 Final Carried 6 | 3 5 6 Class Distribution -------------------- 71% | Mutant 28% | Scavenger-Mutant Dominant Class ---------------- Mutant | -10/Materials Scavenger-Mutant | -10/Mines Resources | -11 -10 -10 ----------- Run | Yrd Mat Min Matter Collected 357 | 67 210 80 Remotely . | . . . Salvage Created 467 | . 210 257 Parts 37 | . 20 17 Haulers Intercepted . | . . . Recyclers Shooed . | . . . Parts Field Recycled . | . . . Retrieved Matter . | . . . Parts Self-Destructed . | . . . Prevented . | . . . Kills | -11 -10 -10 ------- Run | Yrd Mat Min Combat Hostiles Destroyed 20 | . 9 11 Guns 20 | . 9 11 Classes Destroyed 2 | . 2 . Swarmer 14 | . 6 8 Grunt 6 | . 3 3 Best Kill Streak 3 | . 3 3 Combat Bots Only 3 | . 3 3 Max Kills in Single Turn 2 | . 2 2 Gunslinging 1 | . 1 1 Exploded . | . . . Melee . | . . . Uniques/NPCs Destroyed . | . . . Combat | -11 -10 -10 -------- Run | Yrd Mat Min Hostile Shots Fired 137 | . 45 92 Missed 32 | . 8 24 Damage Taken 1084 | . 376 708 Core 253 | . 50 203 Absorbed by Shields . | . . . Core Remaining (%) 100 | 100 . . Volleys Fired 61 | . 25 36 Largest 2 | . 2 2 Hottest 100 | . 100 100 Shots Fired 107 | . 43 64 Gun 107 | . 43 64 Cannon . | . . . Launcher . | . . . Special . | . . . Kinetic 57 | . 21 36 Thermal 50 | . 22 28 Explosive . | . . . Electromagnetic . | . . . Robot Hit Streak 8 | . 5 8 Robot Miss Streak 5 | . 5 2 Penetration Max . | . . . Secondary Targets 5 | . 2 3 Max Gunslinging Chain 1 | . 1 1 Shots Hit Robots 68 | . 18 50 Core Hits 32 | . 13 19 Critical Kills . | . . . Critical Parts Destroyed 1 | . . 1 Critical Strikes 6 | . 1 5 Burn 5 | . 1 4 Destroy 1 | . . 1 Melee Attacks . | . . . Impact . | . . . Slashing . | . . . Piercing . | . . . Sneak Attacks . | . . . Combat Hostiles . | . . . Follow-up Attacks . | . . . Damage Inflicted 750 | . 225 525 Guns 734 | . 216 518 Cannons . | . . . Explosions . | . . . Melee . | . . . Ramming 16 | . 9 7 Kinetic 357 | . 115 242 Thermal 377 | . 101 276 Explosive . | . . . Electromagnetic . | . . . Impact . | . . . Slashing . | . . . Piercing . | . . . Highest Corruption . | . . . Average Corruption . | . . . Corruption Purged . | . . . Corruption Blocked . | . . . Overload Shots . | . . . Overflow Damage . | . . . Projectiles . | . . . Explosions . | . . . Melee . | . . . Knockbacks . | . . . Impact . | . . . Kinetic . | . . . Secondary . | . . . Self-Inflicted Damage . | . . . Shots . | . . . Rammed . | . . . Targets Rammed 7 | . 4 3 Kicked 7 | . 4 3 Crushed . | . . . Highest Temperature 219 | . 219 189 Average Temperature 61 | . 57 65 Received Heat Transfer 357 | . 141 216 Effects 2 | . 2 . Interference 2 | . 2 . Siege Activations . | . . . Robots Corrupted . | . . . Combat Hostiles . | . . . Parts Fried . | . . . Impact Corruptions . | . . . Robots Melted . | . . . Combat Hostiles . | . . . Parts Melted 3 | . . 3 Heat Transferred 1480 | . 370 1110 Parts Sabotaged . | . . . Parts Stolen . | . . . Parts Stripped . | . . . Power Chain Reactions . | . . . Alert | -11 -10 -10 ------- Run | Yrd Mat Min Peak Influence 356 | . 236 356 Initial 91 | . . 91 Average 185 | . 156 246 Maximum Alert Level 1 | . 1 1 Low Security (%) 38 | 100 49 17 Level 1 61 | . 50 82 Level 2 . | . . . Level 3 . | . . . Level 4 . | . . . Level 5 . | . . . High Security . | . . . Max Security . | . . . Squads Dispatched . | . . . Investigation . | . . . Extermination . | . . . Reinforcement . | . . . Assault . | . . . Garrison . | . . . Intercept . | . . . Searches Triggered . | . . . Construction Impeded . | . . . Haulers Reinforced . | . . . Active Scanning Responses . | . . . Cargo Convoy Interrupts . | . . . Stealth | -11 -10 -10 --------- Run | Yrd Mat Min Distress Signals . | . . . Communications Jammed . | . . . Distress Signals . | . . . Times Spotted 28 | . 14 14 Peak Tracking Total 6 | . 6 5 Tactical Retreats 5 | . 2 3 Traps | -11 -10 -10 ------- Run | Yrd Mat Min Traps Triggered . | . . . Indirectly . | . . . Trap Hack Attempts . | . . . Triggered . | . . . Disarmed . | . . . Reprogrammed . | . . . Reused . | . . . Traps Extracted . | . . . Installed . | . . . Triggered . | . . . Machines | -11 -10 -10 ---------- Run | Yrd Mat Min Machines Disabled . | . . . Max in Single Turn . | . . . Machines Repaired . | . . . Machines Dismantled . | . . . Machines Sabotaged . | . . . Overloaded Fab Kills . | . . . Hacking | -11 -10 -10 --------- Run | Yrd Mat Min Machines Accessed 2 | . 2 . Terminals 2 | . 2 . Fabricators . | . . . Repair Stations . | . . . Recycling Units . | . . . Scanalyzers . | . . . Garrison Access . | . . . Total Hacks 3 | . 3 . Successful . | . . . Failed 3 | . 3 . Catastrophic 2 | . 2 . Database Lockouts . | . . . Manual 3 | . 3 . Terminals 3 | . 3 . Fabricators . | . . . Repair Stations . | . . . Recycling Units . | . . . Scanalyzers . | . . . Garrison Access . | . . . Terminal Hacks . | . . . Fabricator Hacks . | . . . Repair Station Hacks . | . . . Recycling Unit Hacks . | . . . Scanalyzer . | . . . Garrison Access Hacks . | . . . Unauthorized Hacks . | . . . Terminals . | . . . Fabricators . | . . . Repair Stations . | . . . Recycling Units . | . . . Scanalyzers . | . . . Garrison Access . | . . . Data Cores Recovered . | . . . Used . | . . . Hacking Detections 2 | . 2 . Full Trace Events . | . . . Feedback Events . | . . . Feedback Blocked . | . . . Robot Schematics Acquired . | . . . Robots Built . | . . . Authchips . | . . . Time . | . . . Total Robot Build Rating . | . . . Part Schematics Acquired . | . . . Parts Built . | . . . Authchips . | . . . Time . | . . . Total Part Build Rating . | . . . Parts Repaired . | . . . Time . | . . . Parts Recycled . | . . . Recycled Matter . | . . . Retrieved Matter . | . . . Retrieved Components . | . . . Parts Scanalyzed . | . . . Part Schematics Acquired . | . . . Parts Damaged . | . . . Bothacking | -11 -10 -10 ------------ Run | Yrd Mat Min Used RIF Installer . | . . . Robots Hacked . | . . . Non-combat . | . . . Combat . | . . . Robot Hacks Applied . | . . . Relay Couplers Released . | . . . Fabnet Peak Effective % . | . . . Robots Rewired . | . . . Allies Hacked . | . . . Hacks Repelled . | . . . Allies | -11 -10 -10 -------- Run | Yrd Mat Min Total Allies . | . . . Largest Group . | . . . Highest-Rated Group . | . . . Highest-Rated Ally . | . . . Total Orders . | . . . Ally Attacks . | . . . Total Damage . | . . . Kills . | . . . Allies Corrupted . | . . . Allies Melted . | . . . Intel | -11 -10 -10 ------- Run | Yrd Mat Min Robot Analysis Total . | . . . Derelict Logs Recovered . | . . . Drone Launches . | . . . Drone Recoveries . | . . . Exploration | -11 -10 -10 ------------- Run | Yrd Mat Min Turns Passed 581 | 51 251 279 Spaces Moved 306 | 35 131 140 Core 13 | 8 . 5 Treads . | . . . Legs 293 | 27 131 135 Wheels . | . . . Hover . | . . . Flight . | . . . Fastest Speed 50 | 50 120 120 Average Speed 118 | 104 120 121 Slowest Speed 150 | 120 120 150 Overloaded Moves . | . . . Propulsion Burnouts . | . . . Robots Hopped . | . . . Cave-ins Triggered . | . . . Exploration Rate (%) 18 | 4 20 32 Regions Visited 2 Branch Regions 1 Pre-discovered Areas . | . . . Known Exits Taken . | . . . Unknown Exits Taken 2 | 1 1 . Scrap Searched . | . . . Spaces Dug . | . . . Terrain Destroyed . | . . . Melee . | . . . Projectile . | . . . AOE . | . . . Terrain Rammed . | . . . Walls Destroyed . | . . . Machines Disabled . | . . . Actions | -11 -10 -10 --------- Run | Yrd Mat Min Total 425 | 49 183 193 Wait 19 | . 13 6 Move 304 | 34 130 140 Hop . | . . . Pick Up 17 | 9 4 4 Fast Attach . | . . . Attach 12 | 6 3 3 Detach 1 | . 1 . Swap 3 | . 2 1 Drop 1 | . 1 . Fire 61 | . 25 36 Melee . | . . . Ram . | . . . Kick 7 | . 4 3 Crush . | . . . Escape Stasis . | . . . Rewire . | . . . Trap . | . . . Miscellaneous . | . . . Route ------- -11/Scrapyard -10/Materials (discovered 2 exits: [*Mat] / [*Min]) -10/Mines History --------- Turn | Location | Event 5 | -11/Scrapyard | Discovered new exit (range 15) 52 | -11/Scrapyard | Entered Materials 232 | -10/Materials | Discovered new exit (range 12) 236 | -10/Materials | Discovered new exit (range 15) 303 | -10/Materials | Entered Mines 305 | -10/Mines | Build established: Mutant 380 | -10/Mines | Core integrity fell below 50% 477 | -10/Mines | Received a Rocket Launcher from a helpful Derelict 572 | -10/Mines | Core integrity fell below 20% 582 | -10/Mines | Destroyed by S-10 Pest with Light Assault Rifle Last Messages --------------- 00476_ K-01 Serf collects debris. 00477_ T8-L70(g): "Would you like a rocket launcher? I know I would if I were you, so I'm going to lend you mine." 00477_ T8-L70(g) slips back into the shadows. 00480_ Acquired Rocket Launcher. 00540_ G-34 Mercenary destroyed. 00542_ Aluminum Leg destroyed. 00543_ S-10 Pest destroyed. 00543_ Switching to secondary target: S-10 Pest. 00546_ S-10 Pest destroyed. 00546_ Switching to secondary target: G-47 Trooper. 00555_ Aluminum Leg destroyed. 00569_ G-47 Trooper suffers critical hit (Destroy). 00569_ Destroyed Lgt. Nuclear Core. 00575_ T-07 Excavator destroyed. 00577_ Lgt. Assault Rifle destroyed. 00582_ G-47 Trooper destroyed. Map ----- +----------------------------------------------------+ | #???????????????## #????????????????????????????? | | ##?????????????# ##??????????????????????????? | | ###???????????# ##?????????????????????????? | | ##?????##????# ##????????????????????????? | | ###### #????## ##???????????????????????? | | #?????# ##??????????????????????? | | #?????## ##?????????????????????? | | ######= #??????#### #?????????????????????? | | #### * #?????????## #?????????????????????? | | ##?# = ##??????????# #?????????????????????? | | ???# [###???????????# ##?????????????????????? | | ???# ##?????????????# ##?????????????????????? | | #### ###??????????????## ##????????????????????? | | % #?????????????????# #?????????? ????????? | | % #?????????????????## #????????? ????????? | | ## ####?????????????????## ##??????? ???????? | | ?#%#???????????????????## #?????? ???????? | | ?# ##?????????????????## #????? ???????? | | ## ##???????????????## ##???? ?????????? | | # #?????????????### ##????# #??????????? | | #????????????## ##????# #???????????? | | ##????????????# ##???# #????????????? | | #?????????????# #### #????????????? | | #######???????# = #????????????? | | #?####??# =%! ##????????????? | | #### ### ### @% ####?????????????? | | #??# ## ###|= ##????????????????? | | #??# ## ##?# %####?????????????????? | | #??# ### ### ##??#%s#????????????????????? | | #??# #?##???## ##???#[ #????????????????????? | | # ##??# ######### ##### %=#????????????????????? | | # ##???# = #??????????????????? | | # #????## ############# #?????????????????? | | # ?????# #???????????## #?????????????????? | | # ???? #????????????## ## ???????????????????? | | #??####?????????????# ?? ???????????????????? | | ##???????????????????# ?? #??????????????????? | | #???????????????????? ?? #??????????????????? | | ????????????????????##??? ??????????????????? | | ?????????????????????????#??????????????????? | | # ????????????????????????????????????????????? | | ?# ????????????????????????????????????????????? | | ?????????????????????????????????????????????????? | | ?????????????????????????????????????????????????? | | ?????????????????????????????????????????????????? | | ?????????????????????????????????????????????????? | | ?????????????????????????????????????????????????? | | ?????????????????????????????????????????????????? | | ?????????????????????????????????????????????????? | | ?????????????????????????????????????????????????? | +----------------------------------------------------+ Best States ------------- Heat Dissipation 25 Energy Generation 10 Energy Capacity 125 Matter Stores 300 Matter Capacity 300 Sight Range 16 Terrain Scan Density 10 Evasion (%) 55 Item Schematics ----------------- None Robot Schematics ------------------ None Fabricated ------------ Nothing Alien Tech Used ----------------- None Achievements -------------- None Challenges ------------ None Game ------ Seed ConcussiveMinesnifferTorch Manual? 0 Play Time 00:07:54 Cumulative 32.5 hours Start 2024.09.03 @ 19:19:49 End 2024.09.03 @ 19:26:17 Sessions 1 Manual Loads 0 Difficulty Rogue Special Mode None Game No. 41 Rogue 9 Adventurer 32 Explorer 0 Win Type - Total 0 Types 0/0/0/0/0/0/0/0/0 Lore% 15 Gallery% 24 Achievement% 22 Wizard Run 0 Options --------- Layout 1 ASCII 0 Keyboard 0 Movement Numpad Keybinds 0 Fullscreen 1 Font 24/Smallcaps Map View 50x35 Zoom Use 0% Tactical HUD 1 Map Filters NONE Filters NONE Steam 1 RUN: 4f1343f4-2c6a-4251-93c3-d2d24fe8e37c